bitfinex-derivatives/quotes_BTCF0:USTF0_20250912
["timestamp","ask_amount","ask_price","bid_price","bid_amount"]
[1757641990994,0.005,115600.0,115590.0,0.85701]
[1757641991202,0.92005449,115600.0,115590.0,0.73054449]
[1757641991391,0.92005449,115600.0,115590.0,0.99474449]
[1757641991591,0.92009449,115600.0,115590.0,0.99474449]
[1757641991792,0.79656,115600.0,115590.0,0.87121]
[1757641991992,0.79656,115600.0,115590.0,0.99474449]
[1757641992201,0.92009449,115600.0,115590.0,0.99474449]
[1757641992695,0.92009449,115600.0,115590.0,0.87121]
[1757641992902,1.04362898,115600.0,115590.0,0.30121]
[1757641993895,1.04362898,115600.0,115590.0,0.27907]
[1757641995291,1.16716347,115600.0,115590.0,0.01487]
[1757641996402,1.16716347,115600.0,115590.0,0.001]
[1757641996706,1.41716347,115600.0,115590.0,0.001]
[1757641997203,1.43725074,115600.0,115590.0,0.001]
[1757642003408,0.64569074,115600.0,115590.0,0.001]
[1757642003707,1.43809074,115600.0,115590.0,0.001]
[1757642005915,0.64569074,115600.0,115590.0,0.001]
[1757642006114,1.43805074,115600.0,115590.0,0.03625]
[1757642006517,1.43805074,115600.0,115590.0,0.001]
[1757642008304,1.43805074,115600.0,115590.0,0.015]
[1757642010218,1.43805074,115600.0,115570.0,0.03136066]
[1757642010219,1.18805074,115600.0,115570.0,0.03136066]
[1757642010419,0.37060347,115580.0,115570.0,0.03136066]
[1757642010619,1.16268347,115580.0,115570.0,0.03136066]
[1757642011322,1.16268347,115580.0,115570.0,0.28136066]
[1757642011616,1.16268347,115580.0,115570.0,0.28236066]
[1757642013022,1.03914898,115580.0,115570.0,0.30361066]
[1757642013215,1.11001851,115580.0,115570.0,0.30461066]
[1757642013417,1.11001851,115580.0,115570.0,0.30361066]
[1757642013620,1.11101851,115580.0,115570.0,0.30561066]
[1757642013819,1.26336298,115580.0,115570.0,0.003]
[1757642015220,1.26636298,115580.0,115570.0,0.002]
[1757642015623,1.26836298,115580.0,115570.0,0.001]
[1757642016625,1.26836298,115580.0,115570.0,0.015]
[1757642019325,1.26836298,115580.0,115570.0,0.001]
[1757642019826,0.37060347,115570.0,115550.0,0.014]
[1757642020026,1.16252347,115560.0,115550.0,0.014]
[1757642021326,1.16352347,115560.0,115550.0,0.03625]
[1757642023620,1.03998898,115560.0,115550.0,0.28625]
[1757642024430,0.24806898,115560.0,115550.0,0.48625]
[1757642027527,0.12453449,115560.0,115550.0,0.85625]
[1757642027727,0.12453449,115560.0,115550.0,0.67625]
[1757642027927,0.24806898,115560.0,115550.0,0.67625]
[1757642033130,0.001,115560.0,115550.0,0.67625]
[1757642033331,0.12453449,115560.0,115550.0,0.67625]
[1757642033629,0.12453449,115560.0,115550.0,1.46817]
[1757642035529,0.21434282,115580.0,115570.0,0.03623]
[1757642035722,0.33787731,115580.0,115570.0,0.40623]
[1757642036829,0.33787731,115580.0,115570.0,0.40723]
[1757642037025,0.34187731,115580.0,115570.0,0.40723]
[1757642037426,0.34387731,115580.0,115570.0,0.40723]
[1757642040537,0.25306898,115580.0,115570.0,0.51143]
[1757642042038,0.25306898,115580.0,115570.0,0.51994486]
[1757642044844,0.006,115580.0,115570.0,0.25574486]
[1757642045045,0.25306898,115580.0,115570.0,1.04754486]
[1757642046348,0.12953449,115580.0,115570.0,1.07754486]
[1757642046841,0.12953449,115580.0,115570.0,0.28574486]
[1757642047140,0.12953449,115580.0,115570.0,1.07754486]
[1757642048441,0.37663396,115580.0,115570.0,1.07754486]
[1757642048749,0.37663396,115580.0,115570.0,1.40754486]
[1757642050745,0.37663396,115580.0,115570.0,1.67174486]
[1757642050946,0.37663396,115580.0,115570.0,0.87994486]
[1757642052347,0.006,115580.0,115570.0,0.87994486]
[1757642052742,0.37663396,115580.0,115570.0,0.87994486]
[1757642054943,0.19131698,115580.0,115570.0,1.31526184]
[1757642055250,0.37663396,115580.0,115570.0,1.12994486]
[1757642055446,0.37663396,115580.0,115570.0,0.30994486]
[1757642055652,0.37663396,115580.0,115570.0,1.64166486]
[1757642055854,0.37663396,115580.0,115570.0,1.37746486]
[1757642056448,0.37663396,115580.0,115570.0,0.04574486]
[1757642056752,0.37663396,115580.0,115570.0,1.25246486]
[1757642057252,0.37663396,115580.0,115570.0,1.42742486]
[1757642057644,0.37663396,115580.0,115570.0,1.40742486]
[1757642058753,0.37663396,115580.0,115570.0,0.61574486]
[1757642058951,0.006,115580.0,115570.0,1.40742486]
[1757642059156,0.37663396,115580.0,115570.0,1.40742486]
[1757642059654,0.37663396,115580.0,115570.0,0.61574486]
[1757642059956,0.37663396,115580.0,115570.0,1.40742486]
[1757642060655,0.37663396,115580.0,115570.0,0.61574486]
[1757642060856,0.37663396,115580.0,115570.0,1.40742486]
[1757642061057,0.19131698,115580.0,115570.0,0.80106184]
[1757642061258,0.19131698,115580.0,115570.0,1.59270184]
[1757642061948,0.19131698,115580.0,115570.0,1.40738486]
[1757642062150,0.19131698,115580.0,115570.0,1.59270184]
[1757642062459,0.19131698,115580.0,115570.0,1.40738486]
[1757642062757,0.19131698,115580.0,115570.0,1.59270184]
[1757642062966,0.006,115580.0,115570.0,1.59270184]
[1757642063154,0.19131698,115580.0,115570.0,1.59270184]
[1757642063351,0.006,115580.0,115570.0,1.59270184]
[1757642063551,0.19131698,115580.0,115570.0,1.59270184]
[1757642064360,0.37663396,115580.0,115570.0,1.59270184]
[1757642064656,0.37663396,115580.0,115570.0,0.80106184]
[1757642064958,0.37663396,115580.0,115570.0,1.59270184]
[1757642065352,0.37663396,115580.0,115570.0,1.40738486]
[1757642065553,0.37663396,115580.0,115570.0,1.6099255]
[1757642065752,0.37663396,115580.0,115570.0,1.42460852]
[1757642065954,0.37663396,115580.0,115570.0,0.63296852]
[1757642066158,0.37663396,115580.0,115570.0,1.42456852]
[1757642066660,0.37663396,115580.0,115570.0,1.41605366]
[1757642067763,0.37663396,115580.0,115570.0,0.05445366]
[1757642067958,0.37663396,115580.0,115570.0,0.61445366]
[1757642068159,0.006,115580.0,115570.0,0.98845366]
[1757642068461,0.37663396,115580.0,115570.0,0.05445366]
[1757642068663,0.37663396,115580.0,115570.0,1.26881366]
[1757642068854,0.37663396,115580.0,115570.0,0.05445366]
[1757642069055,0.37663396,115580.0,115570.0,1.38605366]
[1757642070754,0.37663396,115580.0,115570.0,0.59445366]
[1757642070960,0.37663396,115580.0,115570.0,1.39601366]
[1757642071965,0.44567018,115580.0,115570.0,1.39601366]
[1757642072564,0.44567018,115580.0,115570.0,0.60445366]
[1757642073265,0.07503622,115580.0,115570.0,0.60445366]
[1757642073468,0.44567018,115580.0,115570.0,0.60445366]
[1757642074757,0.44567018,115580.0,115570.0,0.05445366]
[1757642074956,0.88098716,115580.0,115570.0,0.03723]
[1757642078356,0.88098716,115580.0,115570.0,0.0148]
[1757642079268,0.63098716,115580.0,115570.0,0.03723]
[1757642089176,1.42254716,115580.0,115570.0,0.03723]
[1757642092376,0.63098716,115580.0,115570.0,0.03723]
[1757642092578,1.42254716,115580.0,115570.0,0.03723]
[1757642099775,1.42254716,115580.0,115570.0,0.25723]
[1757642099983,1.42254716,115580.0,115570.0,0.03723]
[1757642100181,1.42254716,115580.0,115570.0,0.23723]
[1757642100384,1.42254716,115580.0,115570.0,0.03723]
[1757642102282,1.42254716,115580.0,115570.0,0.25723]
[1757642102470,1.42254716,115580.0,115570.0,0.03723]
[1757642102674,1.42254716,115580.0,115570.0,0.26723]
[1757642102882,1.42254716,115580.0,115570.0,0.03723]
[1757642104076,1.42254716,115580.0,115570.0,0.23723]
[1757642104276,0.63098716,115580.0,115570.0,0.25723]
[1757642105482,0.07503622,115580.0,115570.0,0.25723]
[1757642105683,0.63098716,115580.0,115570.0,0.25723]
[1757642107991,0.07503622,115580.0,115570.0,0.25723]
[1757642108188,0.44567018,115580.0,115570.0,0.25723]
[1757642108485,0.44567018,115580.0,115570.0,0.50723]
[1757642109282,0.32503622,115580.0,115520.0,0.01332]
[1757642109481,0.55595094,115530.0,115520.0,0.05]
[1757642109681,0.55595094,115530.0,115510.0,0.21504679]
[1757642109682,0.69127094,115530.0,115510.0,0.21504679]
[1757642109889,0.55595094,115520.0,115510.0,0.23693679]
[1757642110392,0.55595094,115520.0,115510.0,0.03521]
[1757642110393,0.3711921,115520.0,115510.0,0.03521]
[1757642111686,0.95003674,115520.0,115510.0,0.03521]
[1757642111883,0.2474614,115520.0,115510.0,0.03521]
[1757642112191,0.2474614,115520.0,115510.0,0.28521]
[1757642112390,0.1247307,115520.0,115510.0,0.28921]
[1757642112580,0.1247307,115520.0,115510.0,0.50921]
[1757642112781,0.2484614,115520.0,115510.0,0.50921]
[1757642113189,0.31783806,115520.0,115510.0,0.50921]
[1757642113789,0.31883806,115520.0,115510.0,0.51221]
[1757642115190,0.31883806,115520.0,115510.0,0.50221]
[1757642118290,0.31883806,115520.0,115510.0,0.29221]
[1757642121195,0.31883806,115520.0,115510.0,0.04221]
[1757642121586,0.44256876,115520.0,115510.0,0.02032]
[1757642121787,0.31883806,115520.0,115510.0,0.02032]
[1757642122596,0.31883806,115520.0,115510.0,0.04241]
[1757642123187,0.83839806,115520.0,115510.0,0.04241]
[1757642125397,1.11139806,115520.0,115510.0,0.04241]
[1757642127095,1.23516876,115520.0,115510.0,0.04241]
[1757642127397,1.23516876,115520.0,115510.0,0.02032]
[1757642127707,1.23516876,115520.0,115510.0,0.04241]
[1757642131696,0.44256876,115520.0,115510.0,0.04241]
[1757642131899,1.23504876,115520.0,115510.0,0.04241]
[1757642132098,1.23496876,115520.0,115510.0,0.04241]
[1757642132297,1.11123806,115520.0,115510.0,0.04241]
[1757642132498,1.11119806,115520.0,115510.0,0.04241]
[1757642133400,1.23492876,115520.0,115510.0,0.04241]
[1757642133593,1.23480876,115520.0,115510.0,0.02032]
[1757642134399,1.23480876,115520.0,115510.0,0.04241]
[1757642135995,1.23480876,115520.0,115510.0,0.02032]
[1757642136391,1.23480876,115520.0,115510.0,0.04241]
[1757642136897,0.44256876,115520.0,115510.0,0.04241]
[1757642137101,1.51584876,115520.0,115510.0,0.04241]
[1757642138301,0.72256876,115520.0,115510.0,0.04241]
[1757642138501,1.51576876,115520.0,115510.0,0.04241]
[1757642138702,1.51552876,115520.0,115510.0,0.04241]
[1757642139105,0.72256876,115520.0,115510.0,0.04241]
[1757642139401,1.39183806,115520.0,115510.0,0.04241]
[1757642139600,0.59883806,115520.0,115510.0,0.04241]
[1757642139796,1.39175806,115520.0,115510.0,0.04241]
[1757642140404,1.41832268,115520.0,115510.0,0.04241]
[1757642140698,0.99913338,115520.0,115510.0,0.007]
[1757642141006,1.79201338,115520.0,115510.0,0.01295]
[1757642142300,1.79201338,115520.0,115490.0,0.03541]
[1757642142601,0.14367842,115500.0,115490.0,0.03541]
[1757642142898,1.46405982,115500.0,115490.0,0.01332]
[1757642143605,1.34024912,115500.0,115490.0,0.01332]
[1757642143790,1.34024912,115500.0,115490.0,0.01432]
[1757642144196,1.34124912,115500.0,115490.0,0.03841]
[1757642144396,1.3213014,115500.0,115490.0,0.03841]
[1757642144597,1.3213014,115500.0,115490.0,0.01632]
[1757642145701,1.47163174,115500.0,115490.0,0.003]
[1757642146207,0.67879174,115500.0,115490.0,0.003]
[1757642146407,1.47151174,115500.0,115490.0,0.003]
[1757642146803,1.47151174,115500.0,115490.0,0.002]
[1757642147005,1.48211364,115500.0,115490.0,0.003]
[1757642147210,1.48211364,115500.0,115490.0,0.002]
[1757642147502,1.48331364,115500.0,115490.0,0.002]
[1757642147702,1.48331364,115500.0,115490.0,0.001]
[1757642148702,1.48331364,115500.0,115470.0,0.03504]
[1757642148901,0.1237307,115480.0,115470.0,0.03504]
[1757642149107,1.1980907,115480.0,115470.0,0.03504]
[1757642149705,1.3218214,115480.0,115470.0,0.03504]
[1757642149904,1.3218214,115480.0,115470.0,0.03704]
[1757642150099,0.5274614,115480.0,115470.0,0.03704]
[1757642150306,1.34209495,115480.0,115470.0,0.03704]
[1757642150505,1.34209495,115480.0,115470.0,0.03504]
[1757642150706,1.09563355,115480.0,115470.0,0.03704]
[1757642151107,1.41230174,115480.0,115470.0,0.03704]
[1757642151308,1.41430174,115480.0,115470.0,0.01495]
[1757642151610,1.53803244,115480.0,115470.0,0.01495]
[1757642151806,1.41430174,115480.0,115470.0,0.01495]
[1757642152315,1.16684034,115480.0,115470.0,0.01495]
[1757642152514,1.41478174,115480.0,115470.0,0.03704]
[1757642152812,1.41470174,115480.0,115470.0,0.03704]
[1757642153027,1.4412446,115480.0,115470.0,0.01495]
[1757642153913,1.41470174,115480.0,115470.0,0.01495]
[1757642154213,1.41470174,115480.0,115470.0,0.03714]
[1757642154514,1.53839244,115480.0,115470.0,0.002]
[1757642155208,1.53839244,115480.0,115450.0,0.01295]
[1757642155209,1.78839244,115480.0,115450.0,0.01295]
[1757642155419,0.3711921,115460.0,115450.0,0.01295]
[1757642155608,0.7011921,115460.0,115450.0,0.03514]
[1757642155809,1.3722214,115460.0,115450.0,0.03514]
[1757642156010,1.3721814,115460.0,115450.0,0.03514]
[1757642156515,0.5774614,115460.0,115450.0,0.03514]
[1757642156717,1.3721814,115460.0,115450.0,0.03514]
[1757642157213,1.38186293,115460.0,115450.0,0.03672]
[1757642157411,1.50559363,115460.0,115450.0,0.03672]
[1757642158717,1.50555363,115460.0,115450.0,0.03672]
[1757642159218,1.50555363,115460.0,115450.0,0.01453]
[1757642159808,1.50611363,115460.0,115450.0,0.03672]
[1757642160619,1.4973921,115460.0,115450.0,0.03672]
[1757642160819,1.3736614,115460.0,115450.0,0.03672]
[1757642161016,1.39351188,115460.0,115450.0,0.03672]
[1757642161211,1.39551188,115460.0,115450.0,0.03672]
[1757642161723,1.51924258,115460.0,115450.0,0.01453]
[1757642161911,1.51924258,115460.0,115450.0,0.001]
[1757642162112,1.51904258,115460.0,115450.0,0.01453]
[1757642162313,1.51904258,115460.0,115450.0,0.001]
[1757642162820,1.5275404,115460.0,115450.0,0.001]
[1757642163123,1.50768992,115460.0,115450.0,0.001]
[1757642170020,1.13825782,115460.0,115450.0,0.03672]
[1757642170222,1.3771814,115460.0,115450.0,0.03672]
[1757642170422,1.69559107,115460.0,115450.0,0.03672]
[1757642170829,1.68694906,115460.0,115450.0,0.03672]
[1757642172828,1.69566572,115460.0,115450.0,0.03672]
[1757642174835,1.69566572,115460.0,115450.0,0.01453]
[1757642175029,1.69566572,115460.0,115450.0,0.001]
[1757642175430,1.72214981,115460.0,115450.0,0.001]
[1757642179534,0.35948409,115460.0,115450.0,0.21672]
[1757642179741,1.52684903,115460.0,115450.0,0.46672]
[1757642179946,1.50036604,115460.0,115450.0,0.46672]
[1757642180145,1.50036604,115460.0,115450.0,0.28672]
[1757642181848,1.68610906,115460.0,115450.0,0.001]
[1757642182047,1.71246847,115460.0,115450.0,0.001]
[1757642182442,1.71246847,115460.0,115450.0,0.0149]
[1757642182648,1.52672545,115460.0,115450.0,0.03768]
[1757642182945,1.15523941,115460.0,115450.0,0.03768]
[1757642183143,1.52672545,115460.0,115450.0,0.03768]
[1757642183540,1.71246847,115460.0,115450.0,0.03768]
[1757642184746,1.52672545,115460.0,115450.0,0.03768]
[1757642184946,0.73084545,115460.0,115450.0,0.03768]
[1757642185148,1.52808545,115460.0,115450.0,0.03768]
[1757642185743,1.52808545,115460.0,115450.0,0.45768]
[1757642185744,0.73084545,115460.0,115450.0,0.45768]
[1757642185944,1.52804545,115460.0,115450.0,0.45768]
[1757642186145,1.52804545,115460.0,115450.0,0.28768]
[1757642186545,1.50168604,115460.0,115450.0,0.28768]
[1757642186950,1.50160604,115460.0,115450.0,0.28768]
[1757642188153,1.50160604,115460.0,115450.0,0.46768]
[1757642188546,1.50160604,115460.0,115450.0,0.28768]
[1757642189256,1.52776659,115460.0,115450.0,0.28768]
[1757642189646,0.35916055,115460.0,115450.0,0.28768]
[1757642189948,0.333,115460.0,115450.0,1.18000862]
[1757642190145,0.51874302,115460.0,115450.0,1.18000862]
[1757642190855,0.51874302,115460.0,115450.0,1.09342302]
[1757642191652,0.70448604,115460.0,115450.0,0.65768]
[1757642191851,1.50112604,115460.0,115450.0,0.65768]
[1757642192052,1.50112604,115460.0,115450.0,0.04768]
[1757642192053,1.68686906,115460.0,115450.0,0.04768]
[1757642192255,1.50112604,115460.0,115450.0,0.03768]
[1757642197456,1.12964,115460.0,115450.0,0.03768]
[1757642197856,1.50112604,115460.0,115450.0,0.03768]
[1757642202060,1.12964,115460.0,115450.0,0.03768]
[1757642202260,1.50112604,115460.0,115450.0,0.03768]
[1757642209868,1.50116604,115460.0,115450.0,0.03768]
[1757642210261,1.12968,115460.0,115450.0,0.03768]
[1757642210467,1.50104604,115460.0,115450.0,0.03768]
[1757642211770,1.12956,115460.0,115450.0,0.03768]
[1757642212365,1.50104604,115460.0,115450.0,0.03768]
[1757642212871,1.1302,115460.0,115450.0,0.99342302]
[1757642213172,1.31594302,115460.0,115450.0,0.99342302]
[1757642213372,1.31594302,115460.0,115450.0,0.80768]
[1757642213873,1.31594302,115460.0,115450.0,0.99342302]
[1757642214263,1.31594302,115460.0,115450.0,0.03768]
[1757642214264,1.68742906,115460.0,115450.0,0.03768]
[1757642214669,1.1302,115460.0,115450.0,0.03768]
[1757642214868,1.68742906,115460.0,115450.0,0.03768]
[1757642215166,1.68742906,115460.0,115450.0,0.0149]
[1757642215363,1.93742906,115460.0,115450.0,0.001]
[1757642218275,0.583,115460.0,115450.0,0.03646]
[1757642218470,1.93846906,115460.0,115450.0,0.01417]
[1757642221077,1.93846906,115460.0,115450.0,0.001]
[1757642222370,1.93846906,115460.0,115450.0,0.03646]
[1757642222868,1.93846906,115460.0,115450.0,0.01417]
[1757642223478,1.93846906,115460.0,115450.0,0.03646]
[1757642223676,0.70448604,115460.0,115450.0,0.03646]
[1757642223975,1.50628604,115460.0,115450.0,0.03646]
[1757642227979,1.1348,115460.0,115450.0,0.03646]
[1757642228169,1.50628604,115460.0,115450.0,0.03646]
[1757642230282,1.1348,115460.0,115450.0,0.03646]
[1757642230473,1.3824706,115460.0,115450.0,0.03646]
[1757642231578,0.5806706,115460.0,115450.0,0.03646]
[1757642231788,1.1342,115460.0,115450.0,0.03646]
[1757642231983,1.3818706,115460.0,115450.0,0.03646]
[1757642233484,0.333,115460.0,115450.0,0.03646]
[1757642233675,0.5806706,115460.0,115450.0,0.03646]
[1757642233877,1.3816706,115460.0,115450.0,0.03646]
[1757642237383,0.333,115460.0,115450.0,0.9168805]
[1757642238085,0.333,115460.0,115450.0,1.0407158]
[1757642238277,0.244,115460.0,115450.0,1.0407158]
[1757642238474,0.174,115460.0,115450.0,1.0407158]
[1757642238783,0.139,115460.0,115450.0,1.0407158]
[1757642238978,0.139,115460.0,115450.0,1.91238962]
[1757642239179,0.069,115460.0,115450.0,1.11106962]
[1757642239374,0.04737,115460.0,115450.0,1.89921962]
[1757642239681,0.01637,115460.0,115450.0,1.89921962]
[1757642239886,0.01337,115460.0,115450.0,1.90921962]
[1757642240289,0.01337,115460.0,115450.0,2.05291962]
[1757642241884,0.00556929,115460.0,115450.0,2.05291962]
[1757642242487,0.00556929,115460.0,115450.0,2.05263962]
[1757642242686,0.00556929,115460.0,115450.0,0.85789962]
[1757642242891,0.00556929,115460.0,115450.0,1.65893962]
[1757642243295,0.00556929,115460.0,115450.0,1.65885962]
[1757642243893,0.00556929,115460.0,115450.0,1.09789962]
[1757642244094,0.00556929,115460.0,115450.0,1.89865962]
[1757642246699,0.00556929,115460.0,115450.0,1.89873962]
[1757642247097,0.00556929,115460.0,115450.0,1.91649481]
[1757642247300,0.00556929,115460.0,115450.0,1.11565481]
[1757642247602,0.18556929,115460.0,115450.0,1.41858421]
[1757642247796,0.00556929,115460.0,115450.0,1.54241951]
[1757642248001,0.17556929,115460.0,115450.0,1.54241951]
[1757642248896,0.17556929,115460.0,115450.0,1.69752478]
[1757642249292,0.17556929,115460.0,115450.0,1.69728468]
[1757642249690,0.32176459,115460.0,115450.0,0.53139901]
[1757642249897,0.32176459,115460.0,115450.0,1.45539431]
[1757642250402,0.19792929,115460.0,115450.0,1.33155901]
[1757642250806,0.57176459,115460.0,115450.0,0.43861541]
[1757642252099,0.44792929,115460.0,115450.0,0.43861541]
[1757642252305,0.69559989,115460.0,115450.0,0.43861541]
[1757642252706,0.69559989,115460.0,115450.0,0.01861541]
[1757642253907,0.44792929,115460.0,115450.0,0.01861541]
[1757642254200,0.69559989,115460.0,115450.0,0.001]
[1757642254408,0.69559989,115460.0,115450.0,0.131]
[1757642255912,0.57176459,115460.0,115450.0,0.131]
[1757642257211,0.32176459,115460.0,115450.0,0.131]
[1757642257412,0.44792929,115460.0,115450.0,0.1248353]
[1757642257708,0.44792929,115460.0,115450.0,0.301]
[1757642258310,0.44792929,115460.0,115450.0,0.4248353]
[1757642259309,0.19792929,115460.0,115450.0,0.4248353]
[1757642261213,0.17556929,115460.0,115450.0,0.5114205]
[1757642261513,0.17556929,115460.0,115450.0,1.0256205]
[1757642263018,0.17556929,115460.0,115450.0,1.91483032]
[1757642263217,0.69559989,115460.0,115450.0,0.301]
[1757642264207,0.19792929,115460.0,115450.0,0.4248353]
[1757642267015,0.17556929,115460.0,115450.0,0.6748353]
[1757642267223,0.17556929,115460.0,115450.0,1.4755153]
[1757642268721,0.17556929,115460.0,115450.0,1.6859358]
[1757642269019,0.17556929,115460.0,115450.0,1.71724577]
[1757642270318,0.17556929,115460.0,115450.0,1.78676836]
[1757642270617,0.17556929,115460.0,115450.0,1.91060366]
[1757642271222,0.17556929,115460.0,115450.0,1.10992366]
[1757642271422,0.17556929,115460.0,115450.0,1.91028366]
[1757642272223,0.17556929,115460.0,115450.0,1.10992366]
[1757642272516,0.17556929,115460.0,115450.0,1.91028366]
[1757642272722,0.17556929,115460.0,115450.0,1.91008366]
[1757642274927,0.17556929,115460.0,115450.0,1.10992366]
[1757642275119,0.17556929,115460.0,115450.0,1.91016366]
[1757642275318,0.17556929,115460.0,115450.0,1.10992366]
[1757642275521,0.17556929,115460.0,115450.0,1.91012366]
[1757642276519,0.17556929,115460.0,115450.0,1.91004366]
[1757642277024,0.17556929,115460.0,115450.0,1.10992366]
[1757642277226,0.17556929,115460.0,115450.0,1.90992366]
[1757642277626,0.17556929,115460.0,115450.0,1.90980366]
[1757642278420,0.17556929,115460.0,115450.0,1.90968366]
[1757642278621,0.17556929,115460.0,115450.0,1.75453839]
[1757642280827,0.0336455,115470.0,115450.0,1.75453839]
[1757642280828,0.01337,115470.0,115460.0,0.17520841]
[1757642281022,0.18337,115470.0,115460.0,1.52788696]
[1757642281223,0.01337,115470.0,115460.0,1.52788696]
[1757642281723,0.01337,115470.0,115460.0,1.68303223]
[1757642281923,0.01437,115470.0,115460.0,2.07673223]
[1757642282528,0.01437,115470.0,115460.0,1.92158696]
[1757642283130,0.01537,115470.0,115460.0,1.92258696]
[1757642284130,0.01537,115470.0,115460.0,2.72170696]
[1757642284532,0.01537,115470.0,115460.0,2.27800696]
[1757642285033,0.01137,115490.0,115480.0,0.0865629]
[1757642285233,0.33137,115490.0,115480.0,0.83796849]
[1757642285435,0.33137,115490.0,115480.0,0.87524089]
[1757642285631,0.33137,115490.0,115480.0,1.67408089]
[1757642286527,0.33137,115490.0,115480.0,1.76164379]
[1757642286728,0.33337,115490.0,115480.0,1.76164379]
[1757642287233,0.33437,115490.0,115480.0,1.76164379]
[1757642288935,0.33437,115490.0,115480.0,1.8502745]
[1757642289934,0.33437,115490.0,115480.0,0.8037639]
[1757642290134,0.60739,115490.0,115480.0,1.515641]
[1757642290441,0.60739,115490.0,115480.0,1.88731486]
[1757642290628,0.79294693,115490.0,115480.0,1.70175793]
[1757642290834,0.60739,115490.0,115480.0,1.70171793]
[1757642291229,0.60739,115490.0,115480.0,1.88727486]
[1757642291431,0.60739,115490.0,115480.0,0.99968415]
[1757642291730,0.60739,115490.0,115480.0,1.61304722]
[1757642291930,0.60739,115490.0,115480.0,1.61312722]
[1757642292124,0.79294693,115490.0,115480.0,0.81412722]
[1757642292329,0.60739,115490.0,115480.0,0.81412722]
[1757642292837,0.79294693,115490.0,115480.0,0.81412722]
[1757642293237,0.79294693,115490.0,115480.0,1.61444722]
[1757642293538,0.79294693,115490.0,115480.0,0.62857029]
[1757642294036,0.79294693,115490.0,115480.0,0.01857029]
[1757642294742,0.33437,115490.0,115480.0,0.97968415]
[1757642295239,0.33437,115490.0,115480.0,1.12338415]
[1757642295437,0.79294693,115490.0,115480.0,0.60857029]
[1757642295643,0.60739,115490.0,115480.0,1.59512722]
[1757642296130,0.60739,115490.0,115480.0,1.78068415]
[1757642297530,0.33437,115490.0,115480.0,2.05280398]
[1757642297739,0.33337,115490.0,115480.0,2.30480398]
[1757642298044,0.33337,115490.0,115480.0,2.05480398]
[1757642300241,0.33337,115490.0,115480.0,2.44850398]
[1757642300440,0.33337,115490.0,115480.0,2.23956881]
[1757642301047,0.33337,115490.0,115480.0,2.22084627]
[1757642301741,0.33337,115490.0,115480.0,2.22072627]
[1757642302736,0.33337,115490.0,115480.0,1.16984627]
[1757642302940,0.33337,115490.0,115480.0,2.22044627]
[1757642303535,0.33337,115490.0,115480.0,2.065301]
[1757642311448,0.33337,115490.0,115480.0,2.22044627]
[1757642311847,0.33337,115490.0,115480.0,2.75277698]
[1757642312849,0.33337,115490.0,115480.0,2.75161698]
[1757642313754,0.33337,115490.0,115480.0,2.57774917]
[1757642314053,0.33337,115490.0,115480.0,2.75161698]
[1757642314851,0.33337,115490.0,115480.0,2.66505408]
[1757642315053,0.33337,115490.0,115480.0,2.75161698]
[1757642315554,0.33337,115490.0,115480.0,1.86561408]
[1757642315753,0.58337,115490.0,115480.0,0.93958337]
[1757642315948,0.60456,115490.0,115480.0,1.73918337]
[1757642316351,0.60456,115490.0,115480.0,1.5840381]
[1757642316746,0.60456,115490.0,115480.0,0.7850381]
[1757642316951,0.60456,115490.0,115480.0,1.5838781]
[1757642318957,0.33337,115490.0,115480.0,1.670441]
[1757642320357,0.33337,115490.0,115480.0,2.05308435]
[1757642320756,0.33337,115490.0,115480.0,2.14171506]
[1757642321153,0.33337,115490.0,115480.0,2.29686033]
[1757642322657,0.33337,115490.0,115480.0,1.49802033]
[1757642322857,0.33337,115490.0,115480.0,1.95561134]
[1757642323460,0.35456,115490.0,115480.0,1.86896844]
[1757642324760,0.33337,115490.0,115480.0,1.86896844]
[1757642325962,0.33337,115490.0,115480.0,1.07080844]
[1757642326162,0.33337,115490.0,115480.0,1.86844844]
[1757642326562,0.33337,115490.0,115480.0,2.22351773]
[1757642327065,0.33337,115490.0,115480.0,2.49558435]
[1757642327457,0.33337,115490.0,115480.0,2.65072962]
[1757642328365,0.33337,115490.0,115480.0,2.31008063]
[1757642329965,0.33337,115490.0,115480.0,2.4652259]
[1757642330266,0.33337,115490.0,115480.0,2.378663]
[1757642330655,0.33337,115490.0,115480.0,2.378183]
[1757642330862,0.33337,115490.0,115480.0,1.581023]
[1757642331062,0.33337,115490.0,115480.0,2.377983]
[1757642331367,0.33337,115490.0,115480.0,1.581023]
[1757642331669,0.33337,115490.0,115480.0,2.377903]
[1757642332060,0.58337,115490.0,115480.0,1.39551928]
[1757642332255,0.76887372,115490.0,115480.0,2.03713401]
[1757642332660,0.76887372,115490.0,115480.0,1.85763401]
[1757642332863,0.58337,115490.0,115480.0,1.85763401]
[1757642333774,0.76887372,115490.0,115480.0,1.85763401]
[1757642333976,0.58337,115490.0,115480.0,1.85763401]
[1757642334580,0.76887372,115490.0,115480.0,1.06087401]
[1757642334768,0.79175372,115490.0,115480.0,0.15117029]
[1757642335077,0.79175372,115490.0,115480.0,0.02117029]
[1757642339976,1.58827372,115490.0,115480.0,0.02117029]
[1757642340482,0.79175372,115490.0,115480.0,0.02117029]
[1757642340685,1.58827372,115490.0,115480.0,0.02117029]
[1757642340889,0.79175372,115490.0,115480.0,0.02117029]
[1757642341182,1.58819372,115490.0,115480.0,0.02117029]
[1757642342084,1.58803372,115490.0,115480.0,0.02117029]
[1757642343385,1.58783372,115490.0,115480.0,0.02117029]
[1757642343885,0.79175372,115490.0,115480.0,0.02117029]
[1757642344087,1.58771372,115490.0,115480.0,0.02117029]
[1757642344887,0.79175372,115490.0,115480.0,0.02117029]
[1757642345081,1.58759372,115490.0,115480.0,0.02117029]
[1757642345284,0.79175372,115490.0,115480.0,0.02117029]
[1757642345484,1.58755372,115490.0,115480.0,0.02117029]
[1757642346190,0.79175372,115490.0,115480.0,0.20667401]
[1757642346486,1.58743372,115490.0,115480.0,0.20667401]
[1757642346781,1.58743372,115490.0,115480.0,0.0036]
[1757642346982,1.54288875,115490.0,115480.0,0.0036]
[1757642347281,1.17188131,115490.0,115480.0,0.0036]
[1757642347479,1.17964131,115490.0,115480.0,0.0036]
[1757642347679,1.36514503,115490.0,115480.0,0.0036]
[1757642348890,1.17964131,115490.0,115480.0,0.0036]
[1757642349088,1.36514503,115490.0,115480.0,0.0036]
[1757642351791,1.17964131,115490.0,115480.0,0.0036]